fUST/lending_fUST_20240114
["ID","MTS","AMOUNT","RATE_DAILY","PERIOD"]
[311521385,1705176638336,-155.33523563,0.00024896,2]
[311521389,1705176638357,-23069.24170259,0.00024896,2]
[311521392,1705176638367,-7469.02133119,0.00024896,2]
[311521394,1705176638377,-3025.25,0.00025128,3]
[311521395,1705176638386,-2521.04,0.00025128,3]
[311521396,1705176638396,-40474.5555326,0.00025138,2]
[311521397,1705176638406,-250.0,0.00025309,2]
[311521398,1705176638416,-3000.0,0.00025657,2]
[311521399,1705176638425,-155.02325349,0.00026127,2]
[311521400,1705176638434,-165.46010611,0.00026127,2]
[311521401,1705176638444,-3213.34932591,0.00026127,2]
[311521402,1705176638454,-156.31102773,0.00026127,2]
[311521403,1705176638464,-167.647572,0.00026128,2]
[311521404,1705176638474,-1489.18628655,0.00026238,2]
[311521405,1705176638483,-265.53842,0.00026718,2]
[311521406,1705176638493,-161.85703978,0.00026773,2]
[311521407,1705176638502,-164.31941956,0.00026773,2]
[311521408,1705176638511,-360.90387838,0.00026773,2]
[311521409,1705176638521,-219.69877227,0.00026773,2]
[311521410,1705176638530,-309.79865023,0.00026773,2]
[311521411,1705176638540,-587.23935535,0.00026773,2]
[311521412,1705176638550,-6364.75865863,0.00026773,2]
[311521413,1705176638559,-2871.95900916,0.00026773,2]
[311521414,1705176638569,-322.94976484,0.00026773,2]
[311521415,1705176638578,-242.67449373,0.00026773,2]
[311521416,1705176638587,-191.10838986,0.00026773,2]
[311521417,1705176638597,-155.20695697,0.00026773,2]
[311521418,1705176638606,-264.9672714,0.00026773,2]
[311521419,1705176638616,-1185.90642814,0.00026773,2]
[311521420,1705176638625,-155.37644244,0.00026773,2]
[311521421,1705176638635,-525.7882447,0.00026773,2]
[311521422,1705176638645,-178.57820369,0.00026773,2]
[311521423,1705176638654,-466.82403981,0.00026773,2]
[311521424,1705176638663,-19835.34944112,0.00026773,2]
[311521425,1705176638672,-10634.66587126,0.00026773,2]
[311521426,1705176638682,-846.41518112,0.00026774,2]
[311521427,1705176638695,-394.08637498,0.00026774,2]
[311521428,1705176638704,-120.26276864,0.00026774,2]
[311521429,1705176638716,-15768.5147242,0.00026774,2]
[311521430,1705176638725,-642.34756778,0.00026775,2]
[311521431,1705176638734,-500.0,0.00026775,2]
[311521432,1705176638743,-219.04930635,0.00026775,2]
[311521433,1705176638753,-155.02170312,0.00026775,2]
[311521434,1705176638763,-301.43659782,0.00026775,2]
[311521435,1705176638772,-3754.53066291,0.00026775,2]
[311521444,1705176641187,-873.04473522,0.00024091,2]
[311521445,1705176641198,-131.44301115,0.00024095,2]
[311521446,1705176641210,-1997.72261028,0.00024095,2]
[311521447,1705176641222,-15000.00918568,0.00024095,2]
[311521448,1705176641242,-1745.33217549,0.00024095,2]
[311521449,1705176641252,-3631.27399451,0.00026775,2]
[311521450,1705176641264,-4623.39383,0.00026775,2]
[311521491,1705176646361,-846.75,0.00026775,2]
[311521499,1705176758289,-155.02015262,0.0002467,2]
[311521500,1705176758310,-155.02015262,0.00024671,2]
[311521501,1705176758331,-615.80248759,0.00024671,2]
[311521502,1705176758352,-155.02015262,0.00024672,2]
[311521503,1705176758373,-156.70193537,0.00024672,2]
[311521504,1705176758393,-875.01165605,0.00024672,2]
[311521505,1705176758413,-679.06966143,0.00024673,2]
[311521506,1705176758433,-329.01472352,0.00024673,2]
[311521507,1705176758453,-190.54889442,0.00024674,2]
[311521508,1705176758473,-155.02015262,0.00024893,2]
[311521509,1705176758492,-127.77003114,0.00024896,2]
[311521510,1705176827570,-306.0,0.00024894,2]
[311521511,1705176895500,-198.91903016,0.00024892,2]
[311521512,1705176895521,-594.2143433,0.00024892,2]
[311521513,1705176895541,-155.02015262,0.00024893,4]
[311521514,1705176895560,-160.756103,0.00024893,2]
[311521515,1705176895580,-976.44607626,0.00024893,2]
[311521516,1705176895600,-115.64429466,0.00024894,2]
[311521518,1705176963807,-521.54784729,0.0002489,2]
[311521519,1705176963827,-15197.28117202,0.00024891,2]
[311521520,1705176963847,-13698.4853674,0.00024892,2]
[311521521,1705176963866,-1221.14074006,0.00024893,2]
[311521522,1705176963891,-964.75498104,0.00024893,2]
[311521523,1705176963910,-105.5524826,0.00024894,2]
[311521524,1705176963930,-27.34785846,0.00024896,2]
[311521525,1705176963950,-231.041153,0.00025229,2]
[311521526,1705176963970,-24242.84839813,0.00025369,2]
[311521550,1705177160264,-155.02015262,0.00025006,4]
[311521551,1705177160287,-155.02015262,0.00025006,2]
[311521552,1705177160308,-615.80248759,0.00025007,2]
[311521553,1705177160333,-7021.15720717,0.00025008,2]
[311521564,1705177224821,-3739.83692248,0.00025006,2]
[311521565,1705177224842,-7947.14971871,0.00025006,2]
[311521566,1705177224864,-9502.01335881,0.00025007,2]
[311521578,1705177428874,-155.02015262,0.00025,4]
[311521579,1705177428899,-594.2143433,0.00025001,2]
[311521580,1705177428923,-969.64078843,0.00025008,2]
[311521581,1705177428946,-166.666666,0.00025011,2]
[311521582,1705177428968,-826.8160661,0.00025042,2]
[311521583,1705177428991,-20871.14682489,0.00025081,2]
[311521584,1705177429016,-24900.0,0.00025082,2]
[311521585,1705177429037,-813.879401,0.0002519,2]
[311521586,1705177429061,-8784.1784396,0.00025282,2]
[311521587,1705177429084,-381.274838,0.00025482,2]
[311521588,1705177429106,-1219.1786408,0.00025536,2]
[311521589,1705177429131,-169.91439281,0.00026192,2]
[311521590,1705177429155,-2000.0,0.000267,2]
[311521591,1705177429179,-198.20479942,0.000267,2]
[311521592,1705177429202,-2000.0,0.0002671,2]
[311521593,1705177429225,-2419.18,0.0002671,3]
[311521594,1705177429247,-1679.98,0.0002671,3]
[311521595,1705177429269,-2000.0,0.0002672,2]
[311521596,1705177429292,-2015.98,0.0002672,3]
[311521597,1705177429313,-2000.0,0.0002673,2]
[311521598,1705177429334,-2000.0,0.0002674,2]
[311521599,1705177429354,-2000.0,0.0002675,2]
[311521600,1705177429376,-2000.0,0.0002676,2]
[311521601,1705177429397,-921.72464703,0.0002677,2]
[311521638,1705177832323,-1287.46,0.00025764,3]
[311521639,1705177832333,-155.02015262,0.00025774,4]
[311521640,1705177832344,-81086.75247006,0.00025774,2]
[311521641,1705177832354,-24900.0,0.00025775,2]
[311521642,1705177832363,-198.20479942,0.00026675,2]
[311521643,1705177832373,-675.15,0.00026764,3]
[311521644,1705177832383,-1078.27535297,0.0002677,2]
[311521645,1705177832393,-7980.51757283,0.00026775,2]
[311521646,1705177832404,-214.14955568,0.00026775,2]
[311521647,1705177832413,-2000.0,0.0002678,2]
[311521648,1705177832423,-2000.0,0.0002679,2]
[311521649,1705177832432,-2000.0,0.000268,2]
[311521650,1705177832442,-2000.0,0.0002681,2]
[311521651,1705177832452,-2182.039716,0.0002682,2]
[311521652,1705177832461,-976.18563318,0.00027119,2]
[311521653,1705177832471,-190.637419,0.00027424,2]
[311521654,1705177832480,-1110.06471972,0.00027614,2]
[311521655,1705177832489,-700.0,0.000279,7]
[311521657,1705177832498,-569.94496142,0.0002823,3]
[311521658,1705177832508,-3469.78630284,0.0002823,3]
[311521660,1705177832517,-152.64236015,0.00028409,2]
[311521662,1705177832527,-153.0,0.00028493,2]
[311521664,1705177832536,-153.0,0.00028493,2]
[311521665,1705177832546,-153.0,0.00028493,2]
[311521666,1705177832555,-153.0,0.00028493,2]
[311521667,1705177832565,-2304.81104845,0.00029,2]
[311521668,1705177832574,-152.64236015,0.00029073,2]
[311521669,1705177832583,-222.8,0.00029265,2]
[311521670,1705177832592,-153.0,0.00029315,2]
[311521671,1705177832602,-153.0,0.00029315,2]
[311521672,1705177832612,-153.0,0.00029315,2]
[311521674,1705177832621,-153.0,0.00029315,2]
[311521676,1705177832631,-153.0,0.00029315,2]
[311521678,1705177832641,-622.43736353,0.00029353,2]
[311521680,1705177832650,-296.39874454,0.00029372,2]
[311521682,1705177832659,-1014.26437188,0.00029387,2]
[311521684,1705177832670,-160.59353449,0.0002941,2]
[311521686,1705177832680,-160.59353449,0.00029737,2]
[311521688,1705177832689,-173.76528481,0.0002979,3]
[311521690,1705177832698,-478.45215271,0.00029999,2]
[311521692,1705177832707,-10531.28284953,0.0003,4]
[311521693,1705177832716,-599.10937277,0.0003,4]
[311521694,1705177832726,-640.06125546,0.0003,4]
[311521695,1705177832735,-6978.21700288,0.0003,4]
[311521696,1705177832744,-2152.44432093,0.0003,4]
[311521697,1705177832753,-300.0,0.0003,15]
[311521698,1705177832762,-1000.0,0.0003,15]
[311521699,1705177832771,-227.0,0.0003,2]
[311521700,1705177832780,-3478.77785184,0.00030068,4]
[311521701,1705177832789,-294.71085959,0.00030104,2]
[311521702,1705177832799,-198.78610008,0.00030132,4]
[311521703,1705177832808,-308.47798105,0.00030132,4]
[311521704,1705177832818,-19088.10481325,0.00030133,4]
[311521705,1705177832830,-3092.81555332,0.00030134,4]
[311521706,1705177832841,-872.87113394,0.00030134,4]
[311521707,1705177832850,-1291.19265067,0.00030134,4]
[311521708,1705177832860,-624.00539536,0.00030134,4]
[311521709,1705177832871,-1139.86132645,0.00030134,4]
[311521710,1705177832881,-163.54785741,0.00030134,2]
[311521711,1705177832890,-155.18924097,0.00030134,4]
[311521712,1705177832900,-300.60865489,0.00030134,4]
[311521713,1705177832909,-303.45131958,0.00030134,4]
[311521714,1705177832919,-155.10568216,0.00030134,4]
[311521715,1705177832929,-274.26683262,0.00030134,5]
[311521716,1705177832941,-3738.72601468,0.00030134,4]
[311521717,1705177832950,-545.68588625,0.00030134,4]
[311521718,1705177832961,-4514.60836832,0.00030134,4]
[311521728,1705177833060,-671.3367612,0.00030134,4]
[311521731,1705177833076,-266.7263769,0.00030134,4]
[311521793,1705177841408,-1072.88,0.00030126,3]
[311521794,1705177841418,-209.38603668,0.00030134,4]
[311521795,1705177841433,-983.70006597,0.00030134,4]
[311521803,1705177843233,-284.18401427,0.00030134,4]
[311522069,1705179038556,-260.29428997,0.00027064,2]
[311522077,1705179041598,-41.14230785,0.00027064,2]
[311522078,1705179041608,-643.28378818,0.00027064,2]
[311522079,1705179041618,-219.04930635,0.00027065,2]
[311522080,1705179041628,-155.02015262,0.00027066,4]
[311522081,1705179041639,-190.637419,0.00027254,2]
[311522082,1705179041649,-250.0,0.00028167,2]
[311522083,1705179041658,-239.22726548,0.00028214,3]
[311522084,1705179041669,-164.15203892,0.00028232,3]
[311522085,1705179041680,-445.45066313,0.00028242,3]
[311522086,1705179041690,-5615.63292912,0.00028276,2]
[311522118,1705179046595,-155.02015262,0.00027063,4]
[311522119,1705179046604,-463.36013766,0.00028276,2]
[311522149,1705179246795,706.89113116,0.00025,10]
[311522152,1705179375797,-587.34193161,0.00024246,2]
[311522153,1705179375820,-155.02015262,0.00024246,4]
[311522154,1705179375841,-155.02015262,0.00024247,2]
[311522155,1705179375860,-875.01165605,0.00024247,2]
[311522156,1705179375880,-615.80248759,0.00024248,2]
[311522157,1705179375901,-560.74395883,0.00024248,2]
[311522158,1705179375920,-155.02015262,0.00024248,2]
[311522159,1705179375940,-155.02015262,0.00024249,2]
[311522160,1705179375961,-7947.14971871,0.00024249,2]
[311522161,1705179376130,-10197.86963673,0.00024249,2]
[311522179,1705179450172,-250.0,0.00023521,2]
[311522183,1705179509564,200.0,0.00025871,7]
[311522184,1705179516082,-1221.14074006,0.00022814,2]
[311522185,1705179516277,-8747.68145249,0.00022815,2]
[311522186,1705179516314,-1188.17780745,0.00023521,2]
[311522189,1705179653783,-155.02015262,0.00022813,4]
[311522190,1705179653804,-155.02015262,0.00022814,2]
[311522191,1705179653826,-594.2143433,0.00022814,2]
[311522192,1705179653846,-8473.74535146,0.00022815,2]
[311522193,1705179782284,-554.4461358,0.00022129,2]
[311522194,1705179782306,-615.80248759,0.0002213,2]
[311522195,1705179782326,-5136.25940385,0.00022131,2]
[311522196,1705179782347,-155.02015262,0.00022815,2]
[311522197,1705179782369,-559.47182014,0.00022815,2]
[311522199,1705179846649,-1588.00796449,0.00022813,2]
[311522200,1705179846676,-7913.99203551,0.00022814,2]
[311522203,1705179910488,-155.02015262,0.00022813,4]
[311522204,1705179910510,-76.80596009,0.00022814,2]
[311522205,1705179910531,-3508.17388729,0.00022814,2]
[311522210,1705179977062,-6611.12431466,0.00022814,2]
[311522211,1705179977083,-1261.35141445,0.00022814,2]
[311522212,1705179977104,-74.52427089,0.00022815,2]
[311522240,1705180232618,-6271.39885128,0.00022305,2]
[311522249,1705180238749,-1675.75086743,0.00022305,2]
[311522251,1705180238758,-594.2143433,0.00022305,2]
[311522253,1705180238768,-2323.65776457,0.00022306,2]
[311522254,1705180238801,-1683.2306304,0.00022306,2]
[311522255,1705180238853,-20893.11160503,0.00022306,2]
[311522256,1705180238865,-155.01550155,0.00022711,4]
[311522257,1705180238875,-169.91439281,0.00022713,2]
[311522258,1705180238886,-250.0,0.00022737,2]
[311522259,1705180238897,-864.38558285,0.00022814,2]
[311522260,1705180238907,-235.33407932,0.00022815,2]
[311522261,1705180238916,-166.666666,0.00024036,2]
[311522262,1705180238925,-27132.1551979,0.00024054,2]
[311522263,1705180238934,-813.879401,0.00024294,2]
[311522264,1705180238943,-1743.56,0.00025431,3]
[311522265,1705180238952,-4852.69207353,0.00025441,2]
[311522272,1705180241777,-1000.33541398,0.00025441,2]
[311522273,1705180241789,-2821.86779594,0.00025441,2]
[311522296,1705180246710,-109.28315615,0.00025441,2]
[311522297,1705180246720,-454.82793852,0.00025759,2]
[311522312,1705180247078,-0.8266385,0.00025759,2]
[311522350,1705180337071,63077.00858414,0.00025759,7]
[311522486,1705180945756,-329.01472352,0.00023351,2]
[311522487,1705180945778,-1031.14653714,0.00023351,2]
[311522488,1705180945799,-861.1849247,0.00023351,2]
[311522489,1705180945820,-615.80248759,0.00023352,2]
[311522490,1705180945841,-301.43659782,0.00023353,2]
[311522491,1705180945863,-155.01240099,0.00023353,4]
[311522492,1705180945884,-446.40232824,0.00023353,2]
[311522527,1705181019687,-875.01165605,0.00023219,2]
[311522528,1705181019710,-160.756103,0.0002322,2]
[311522529,1705181019733,-166.666666,0.00023221,2]
[311522530,1705181019753,-1207.56557495,0.00023352,2]
[311522564,1705181086236,-2035.80105868,0.00023012,2]
[311522565,1705181086257,-3739.83692248,0.00023013,2]
[311522566,1705181086279,-15197.28117202,0.00023013,2]
[311522567,1705181086302,-24900.0,0.00023014,2]
[311522568,1705181086325,-36.08084682,0.0002335,2]
[311522597,1705181153169,-1492.24,0.00022997,3]
[311522598,1705181153190,-155.01085076,0.00022997,2]
[311522599,1705181153209,-155.01085076,0.00022997,2]
[311522600,1705181153230,-1694.17346883,0.00022997,2]
[311522601,1705181153252,-1576.73391587,0.00022997,2]
[311522602,1705181153273,-261.8986851,0.00022997,2]
[311522603,1705181153296,-902.06325621,0.00022998,2]
[311522604,1705181153316,-213.06897268,0.00022998,2]
[311522605,1705181153337,-1221.14074006,0.00022998,2]
[311522606,1705181153356,-155.01085076,0.00022998,2]
[311522607,1705181153376,-265.01740506,0.00022998,2]
[311522608,1705181153395,-1738.04312491,0.00022998,2]
[311522609,1705181153416,-782.54,0.00022999,3]
[311522610,1705181153435,-5956.47000547,0.00023005,2]
[311522611,1705181153455,-155.01085076,0.00023006,2]
[311522612,1705181153474,-679.06966143,0.00023006,2]
[311522613,1705181153494,-2031.04627016,0.00023006,2]
[311522614,1705181153513,-191.10838986,0.00023006,2]
[311522615,1705181153536,-554.4461358,0.00023006,2]
[311522616,1705181153557,-594.2143433,0.00023006,2]
[311522617,1705181153579,-36905.76332305,0.00023006,2]
[311522618,1705181153599,-466.88440498,0.00023007,2]
[311522619,1705181153620,-260.43027978,0.00023007,2]
[311522620,1705181153642,-1588.00796449,0.00023007,2]
[311522621,1705181153662,-400.22268597,0.00023007,2]
[311522622,1705181153684,-18874.5069826,0.00023007,2]
[311522623,1705181153705,-4790.79275157,0.00023007,2]
[311522624,1705181153728,-587.34193161,0.00023008,2]
[311522625,1705181153750,-155.01085076,0.00023008,2]
[311522626,1705181153772,-178.6090388,0.00023008,2]
[311522627,1705181153806,-3479.89143237,0.00023008,2]
[311522628,1705181153836,-155.01085076,0.00023008,2]
[311522629,1705181153858,-155.01085076,0.00023008,2]
[311522630,1705181153880,-155.01085076,0.00023008,2]
[311522631,1705181153902,-166.39764695,0.00023009,2]
[311522632,1705181153922,-166.70935578,0.00023009,2]
[311522633,1705181153941,-260.70117224,0.00023009,2]
[311522634,1705181153962,-643.28378818,0.00023009,2]
[311522635,1705181153982,-15888.77749284,0.00023009,2]
[311522636,1705181154003,-20871.14682489,0.00023009,2]
[311522637,1705181154023,-5453.17174308,0.00023009,2]
[311522652,1705181172439,-5837.34060536,0.00020704,2]
[311522654,1705181172565,-119.12940011,0.00020704,2]
[311522664,1705181192342,-5956.47000547,0.00020693,2]
[311522665,1705181192373,-32.78123364,0.00020703,2]
[311522666,1705181192595,-122.22961712,0.00020703,2]
[311522667,1705181193343,861.1849247,0.00020702,2]
[311522668,1705181206362,-667.66860799,0.00020693,2]
[311522669,1705181206499,-13.62588996,0.00020693,2]
[311522670,1705181226254,-322.58071309,0.00022538,2]
[311522671,1705181226276,-4790.79275157,0.00022538,2]
[311522672,1705181226296,-451.94693227,0.00022538,2]
[311522673,1705181226318,-1576.73391587,0.00022538,2]
[311522674,1705181226342,-1588.00796449,0.00022538,2]
[311522675,1705181226362,-155.01085076,0.00022538,2]
[311522676,1705181226383,-260.70117224,0.00022538,2]
[311522677,1705181226406,-521.31313166,0.00022539,2]
[311522678,1705181226434,-521.54784729,0.00022539,2]
[311522679,1705181226454,-560.74395883,0.00022539,2]
[311522680,1705181226475,-178.6090388,0.00022539,2]
[311522681,1705181226496,-2634.01172313,0.00022539,2]
[311522705,1705181236323,-2039.07514371,0.00020693,2]
[311522706,1705181236433,-41.61377844,0.00020693,2]
[311522707,1705181236568,155.01085076,0.00020693,2]
[311522717,1705181250330,-2513.77895858,0.00020284,2]
[311522718,1705181250537,-51.3016114,0.00020284,2]
[311522721,1705181252017,-2039.07514371,0.00020693,2]
[311522722,1705181252127,-41.61377844,0.00020693,2]
[311522723,1705181252571,155.01085076,0.00020693,2]
[311522727,1705181256834,-3478.80260261,0.00020692,2]
[311522728,1705181257007,-70.99597148,0.00020692,2]
[311522729,1705181268965,-265.50554074,0.00020693,2]
[311522730,1705181269144,-5.41848042,0.00020693,2]
[311522731,1705181270755,-226.42032994,0.00021532,2]
[311522732,1705181270848,-4.62082306,0.00021532,2]
[311522733,1705181271731,221.79950688,0.00020693,2]
[311522734,1705181271874,226.42032994,0.00020693,2]
[311522735,1705181271904,226.42032994,0.00020693,2]
[311522736,1705181272149,-37.3560808,0.00020693,2]
[311522737,1705181277852,-155.01085076,0.00021531,2]
[311522738,1705181277881,-265.44070984,0.00021531,2]
[311522739,1705181277981,-8.58064409,0.00021531,2]
[311522740,1705181280724,-1010.5236064,0.0002153,2]
[311522741,1705181280837,-20.62293074,0.0002153,2]
[311522743,1705181298693,-1113.0,0.00022513,2]
[311522747,1705181317089,-1090.34707115,0.00020267,2]
[311522748,1705181317197,-22.25198104,0.00020267,2]
[311522760,1705181357746,759.29962237,0.00022498,5]
[311522773,1705181373736,723.25492323,0.00020256,5]
[311522774,1705181373764,36.04469914,0.00020256,5]
[311522805,1705181391733,804.51916644,0.00020256,5]
[311522808,1705181406288,-810.27974478,0.00021474,2]
[311522809,1705181406454,-16.53632132,0.00021474,2]
[311522823,1705181410559,-2655.55462054,0.00021473,2]
[311522824,1705181410722,-54.19499226,0.00021473,2]
[311522825,1705181410750,-155.00930056,0.00021473,2]
[311522826,1705181412948,400.22268597,0.00021473,2]
[311522837,1705181428118,-560.47401284,0.00021404,2]
[311522838,1705181428250,-11.43824516,0.00021404,2]
[311522900,1705181431797,-394.41643947,0.00022396,3]
[311522906,1705181431852,-641.86356053,0.00022396,3]
[311522907,1705181431862,-263.16805972,0.00022399,2]
[311522908,1705181431874,-7683.98165899,0.00022399,2]
[311522909,1705181431884,-521.31313166,0.000224,2]
[311522910,1705181431895,-861.1849247,0.000224,2]
[311522911,1705181431906,-1251.25826469,0.000224,2]
[311522912,1705181431916,-425.16748197,0.000224,2]
[311522913,1705181431926,-156.70193537,0.000224,2]
[311522914,1705181431937,-560.74395883,0.00022401,2]
[311522915,1705181431946,-166.39764695,0.00022401,2]
[311522916,1705181431957,-155.00930056,0.00022401,2]
[311522917,1705181431967,-260.43027978,0.00022401,2]
[311522918,1705181431978,-155.00930056,0.00022401,2]
[311522919,1705181431988,-554.4461358,0.00022401,2]
[311522920,1705181431997,-6813.17025234,0.00022401,2]
[311522932,1705181437965,-166.70935578,0.000224,2]
[311522933,1705181437975,-260.70117224,0.000224,2]
[311522934,1705181437985,-6885.31511506,0.00022401,2]
[311522935,1705181437994,-875.01165605,0.00022401,2]
[311522936,1705181438003,-1291.57807305,0.00022401,2]
[311522937,1705181438012,-1379.73077982,0.00022401,2]
[311522938,1705181438021,-301.43659782,0.00022401,2]
[311522939,1705181438032,-976.44607626,0.00022401,2]
[311522940,1705181438042,-1379.73077982,0.00022401,2]
[311522941,1705181438051,-643.28378818,0.00022402,2]
[311522942,1705181438061,-615.80248759,0.00022402,2]
[311522943,1705181438071,-191.10838986,0.00022402,2]
[311522945,1705181438080,-1990.42773149,0.00022402,2]
[311522947,1705181438091,-274.02135393,0.00022402,2]
[311522949,1705181438100,-587.34193161,0.00022402,2]
[311522952,1705181438110,-1466.67664473,0.00022402,2]
[311522954,1705181438119,-198.91903016,0.00022402,2]
[311522956,1705181438128,-521.54784729,0.00022402,2]
[311522958,1705181438138,-155.00930056,0.00022402,2]
[311522960,1705181438147,-155.00930056,0.00022403,2]
[311522962,1705181438155,-174.94849142,0.00022403,2]
[311522964,1705181438164,-155.00930056,0.00022403,4]
[311522966,1705181438174,-1031.14653714,0.00022403,2]
[311522968,1705181438183,-594.2143433,0.00022403,2]
[311522970,1705181438192,-155.00930056,0.00022404,2]
[311522971,1705181438201,-219.04930635,0.00022404,2]
[311522972,1705181438211,-679.06966143,0.00022404,2]
[311522973,1705181438219,-2035.80105868,0.00022404,2]
[311522974,1705181438229,-3739.83692248,0.00022404,2]
[311522975,1705181438238,-15888.77749284,0.00022404,2]
[311522976,1705181438247,-155.00930056,0.00022405,2]
[311522977,1705181438257,-155.00930056,0.00022405,2]
[311522978,1705181438266,-360.90387838,0.00022405,2]
[311522979,1705181438275,-160.756103,0.00022405,2]
[311522980,1705181438284,-1221.14074006,0.00022405,2]
[311522981,1705181438294,-285.90751305,0.00022406,2]
[311522982,1705181438303,-155.00930056,0.00022406,2]
[311522983,1705181438312,-329.01472352,0.00022406,2]
[311522984,1705181438321,-15197.28117202,0.00022406,2]
[311522985,1705181438331,-185.94204988,0.00022407,2]
[311522986,1705181438340,-155.00930056,0.0002247,2]
[311522987,1705181438349,-1243.54,0.00022484,3]
[311522988,1705181438359,-2709.7496128,0.00022493,2]
[311522989,1705181438368,-399.61104833,0.00022493,2]
[311522990,1705181438377,-23824.33076765,0.00022494,2]
[311522991,1705181438386,-36905.76332305,0.00022494,2]
[311522992,1705181438396,-20871.14682489,0.00022494,2]
[311522993,1705181438405,-18874.5069826,0.00022494,2]
[311522994,1705181438415,-20842.42787433,0.00022495,2]
[311522995,1705181438425,-19835.34944112,0.00022495,2]
[311522996,1705181438434,-155.02170312,0.0002252,2]
[311522997,1705181438444,-155.07907532,0.00022535,2]
[311522998,1705181438456,-350.37575047,0.00022537,2]
[311522999,1705181438465,-1020.4066425,0.00022537,2]
[311523000,1705181438475,-239.30442843,0.00022537,2]
[311523001,1705181438484,-2403.36490923,0.00022537,2]
[311523002,1705181438494,-1575.25349309,0.00022537,2]
[311523003,1705181438503,-2280.0330301,0.00022544,2]
[311523004,1705181438513,-155.07907532,0.00022992,2]
[311523005,1705181438522,-900.65562106,0.00022994,2]
[311523006,1705181438531,-226.330399,0.00022996,2]
[311523007,1705181438540,-226.330399,0.00022996,2]
[311523008,1705181438549,-264.39527956,0.00023006,2]
[311523009,1705181438558,-156.43203274,0.00023007,2]
[311523010,1705181438567,-155.07907532,0.00023007,2]
[311523011,1705181438577,-1737.04628113,0.00023007,2]
[311523012,1705181438586,-360.2568956,0.00023008,2]
[311523013,1705181438595,-212.93573362,0.00023008,2]
[311523014,1705181438604,-156.84810541,0.00023008,2]
[311523015,1705181438614,-261.7436641,0.00023008,2]
[311523016,1705181438623,-466.65800678,0.00023008,2]
[311523017,1705181438632,-531.90855986,0.00023008,2]
[311523018,1705181438642,-1822.74700439,0.00023009,2]
[311523019,1705181438651,-155.01085076,0.00023009,2]
[311523020,1705181438660,-764.3507022,0.00023549,2]
[311523021,1705181438669,-185.94204986,0.00023849,2]
[311523022,1705181438678,-166.666666,0.00024276,2]
[311523023,1705181438688,-151.0,0.00024905,2]
[311523024,1705181438697,-185.94204986,0.00025292,2]
[311523025,1705181438706,-166.666666,0.00025331,2]
[311523026,1705181438715,-2000.0,0.000257,2]
[311523027,1705181438724,-2000.0,0.0002571,2]
[311523028,1705181438734,-2000.0,0.0002572,2]
[311523029,1705181438743,-2000.0,0.0002573,2]
[311523030,1705181438752,-2000.0,0.0002574,2]
[311523031,1705181438761,-2000.0,0.0002575,2]
[311523032,1705181438770,-226.330399,0.0002575,2]
[311523033,1705181438778,-226.330399,0.0002575,2]
[311523034,1705181438789,-546.87419273,0.00025759,2]
[311523035,1705181438799,-200.0,0.00025759,2]
[311523036,1705181438809,-155.0697814,0.00025759,2]
[311523037,1705181438818,-2921.724647,0.0002576,2]
[311523038,1705181438827,-166.666666,0.00026386,2]
[311523039,1705181438836,-151.0,0.00026457,2]
[311523040,1705181438845,-185.94204986,0.00026734,2]
[311523041,1705181438855,-5000.0,0.00026769,5]
[311523042,1705181438864,-151.0,0.00027311,2]
[311523043,1705181438873,-153.0,0.00027334,2]
[311523044,1705181438882,-153.0,0.00027334,2]
[311523045,1705181438893,-154.9522141,0.00027334,2]
[311523046,1705181438902,-153.0,0.00027334,2]
[311523047,1705181438911,-153.0,0.00027334,2]
[311523048,1705181438920,-153.0,0.00027334,2]
[311523049,1705181438930,-153.0,0.00027334,2]
[311523050,1705181438939,-153.0,0.00027334,2]
[311523051,1705181438949,-336.5137817,0.00027334,2]
[311523052,1705181438958,-153.0,0.00027334,2]
[311523053,1705181438967,-155.04496304,0.00027396,2]
[311523054,1705181438976,-401.9652998,0.00027396,2]
[311523055,1705181438985,-409.49770308,0.00027396,2]
[311523056,1705181438994,-500.0,0.00027396,2]
[311523057,1705181439003,-500.0,0.00027396,2]
[311523058,1705181439013,-221.2482651,0.00027396,2]
[311523059,1705181439021,-500.0,0.00027396,2]
[311523060,1705181439030,-500.0,0.00027396,2]
[311523061,1705181439039,-500.0,0.00027396,2]
[311523062,1705181439048,-500.0,0.00027396,2]